[Event "Titled Tuesday Blitz April 11 Early 2023"]
[White "Samadov, Read"]
[Black "Darini, Pouria"]
[WhiteFideId "13417444"]
[BlackFideId "12502200"]
[WhiteElo "2355"]
[BlackElo "2482"]
[Result "1/2-1/2"]
[Round "07"]
[TimeControl "180+2"]
[Date "2023.04.11"]
[WhiteClock "0:00:04"]
[BlackClock "0:00:04"]

1. d4 {[%clk 0:03:00]}  Nf6 {[%clk 0:02:59]} 2. c4 {[%clk 0:03:01]}  g6 {[%clk 0:03:00]} 3. Nc3 {[%clk 0:03:01]}  d5 {[%clk 0:03:01]} 4. cxd5 {[%clk 0:03:01]}  Nxd5 {[%clk 0:03:01]} 5. e4 {[%clk 0:03:02]}  Nxc3 {[%clk 0:03:02]} 6. bxc3 {[%clk 0:03:02]}  Bg7 {[%clk 0:03:03]} 7. Bc4 {[%clk 0:03:03]}  c5 {[%clk 0:03:03]} 8. Ne2 {[%clk 0:03:04]}  O-O {[%clk 0:03:04]} 9. Be3 {[%clk 0:03:04]}  Nc6 {[%clk 0:03:04]} 10. O-O {[%clk 0:03:05]}  b6 {[%clk 0:03:05]} 11. h4 {[%clk 0:03:05]}  Bb7 {[%clk 0:03:01]} 12. h5 {[%clk 0:03:05]}  cxd4 {[%clk 0:03:00]} 13. cxd4 {[%clk 0:03:05]}  Rc8 {[%clk 0:03:00]} 14. Rc1 {[%clk 0:02:56]}  Na5 {[%clk 0:02:47]} 15. Bd3 {[%clk 0:02:56]}  Rxc1 {[%clk 0:02:45]} 16. Qxc1 {[%clk 0:02:56]}  Qd7 {[%clk 0:02:43]} 17. h6 {[%clk 0:02:49]}  Rc8 {[%clk 0:02:42]} 18. Qb1 {[%clk 0:02:41]}  Bf8 {[%clk 0:02:37]} 19. d5 {[%clk 0:02:34]}  Nc4 {[%clk 0:02:33]} 20. Bf4 {[%clk 0:02:27]}  e6 {[%clk 0:02:26]} 21. dxe6 {[%clk 0:01:54]}  Qxe6 {[%clk 0:02:25]} 22. Ng3 {[%clk 0:01:41]}  Ne5 {[%clk 0:02:20]} 23. Be2 {[%clk 0:01:37]}  Ng4 {[%clk 0:02:12]} 24. Rc1 {[%clk 0:01:16]}  Nxh6 {[%clk 0:01:51]} 25. Rxc8 {[%clk 0:01:15]}  Qxc8 {[%clk 0:01:52]} 26. Qb3 {[%clk 0:01:11]}  Ng4 {[%clk 0:01:39]} 27. Bc4 {[%clk 0:01:07]}  Qd7 {[%clk 0:01:39]} 28. f3 {[%clk 0:00:42]}  Bc5+ {[%clk 0:01:39]} 29. Kf1 {[%clk 0:00:42]}  Qd4 {[%clk 0:01:27]} 30. Ke2 {[%clk 0:00:35]}  Qf2+ {[%clk 0:01:15]} 31. Kd1 {[%clk 0:00:34]}  Ne3+ {[%clk 0:01:15]} 32. Bxe3 {[%clk 0:00:34]}  Bxe3 {[%clk 0:01:15]} 33. Nf1 {[%clk 0:00:26]}  Bc5 {[%clk 0:00:48]} 34. Bxf7+ {[%clk 0:00:27]}  Kg7 {[%clk 0:00:49]} 35. Bc4 {[%clk 0:00:27]}  Qxg2 {[%clk 0:00:44]} 36. Qc3+ {[%clk 0:00:27]}  Kh6 {[%clk 0:00:44]} 37. Qf6 {[%clk 0:00:24]}  Qg5 {[%clk 0:00:36]} 38. Qf7 {[%clk 0:00:21]}  Bc6 {[%clk 0:00:27]} 39. Nd2 {[%clk 0:00:18]}  Ba4+ {[%clk 0:00:24]} 40. Bb3 {[%clk 0:00:14]}  Bxb3+ {[%clk 0:00:21]} 41. Nxb3 {[%clk 0:00:15]}  Be7 {[%clk 0:00:15]} 42. Kc2 {[%clk 0:00:13]}  Qe5 {[%clk 0:00:15]} 43. Kd3 {[%clk 0:00:10]}  Bf6 {[%clk 0:00:14]} 44. Ke2 {[%clk 0:00:07]}  Qh2+ {[%clk 0:00:11]} 45. Kd3 {[%clk 0:00:06]}  Qf4 {[%clk 0:00:10]} 46. Nd2 {[%clk 0:00:05]}  Bg5 {[%clk 0:00:10]} 47. Qxf4 {[%clk 0:00:05]}  Bxf4 {[%clk 0:00:10]} 48. Nc4 {[%clk 0:00:05]}  Bc7 {[%clk 0:00:10]} 49. e5 {[%clk 0:00:05]}  Kg5 {[%clk 0:00:10]} 50. Ke4 {[%clk 0:00:06]}  h5 {[%clk 0:00:09]} 51. f4+ {[%clk 0:00:07]}  Kh6 {[%clk 0:00:07]} 52. f5 {[%clk 0:00:05]}  gxf5+ {[%clk 0:00:06]} 53. Kxf5 {[%clk 0:00:06]}  h4 {[%clk 0:00:06]} 54. Kg4 {[%clk 0:00:06]}  h3 {[%clk 0:00:07]} 55. Kxh3 {[%clk 0:00:06]}  Kg5 {[%clk 0:00:08]} 56. Kg3 {[%clk 0:00:04]}  Kf5 {[%clk 0:00:08]} 57. Kf3 {[%clk 0:00:04]}  b5 {[%clk 0:00:08]} 58. Nd2 {[%clk 0:00:02]}  Kxe5 {[%clk 0:00:08]} 59. Ke3 {[%clk 0:00:02]}  Ba5 {[%clk 0:00:07]} 60. Nb3 {[%clk 0:00:02]}  Bb6+ {[%clk 0:00:08]} 61. Kd3 {[%clk 0:00:03]}  Kd5 {[%clk 0:00:09]} 62. Nd2 {[%clk 0:00:03]}  Bd4 {[%clk 0:00:08]} 63. Ne4 {[%clk 0:00:04]}  Be5 {[%clk 0:00:08]} 64. Nd2 {[%clk 0:00:04]}  Kc5 {[%clk 0:00:09]} 65. Nb3+ {[%clk 0:00:04]}  Kb4 {[%clk 0:00:09]} 66. Kc2 {[%clk 0:00:05]}  Ka3 {[%clk 0:00:10]} 67. Kb1 {[%clk 0:00:05]}  Bc3 {[%clk 0:00:10]} 68. Nc5 {[%clk 0:00:06]}  Kb4 {[%clk 0:00:10]} 69. Nd3+ {[%clk 0:00:06]}  Kc4 {[%clk 0:00:10]} 70. Kc2 {[%clk 0:00:06]}  a5 {[%clk 0:00:10]} 71. Nc1 {[%clk 0:00:06]}  Bd4 {[%clk 0:00:10]} 72. Nb3 {[%clk 0:00:06]}  Bb6 {[%clk 0:00:10]} 73. Nd2+ {[%clk 0:00:07]}  Kb4 {[%clk 0:00:10]} 74. Kb2 {[%clk 0:00:06]}  Be3 {[%clk 0:00:10]} 75. Ne4 {[%clk 0:00:05]}  Bd4+ {[%clk 0:00:11]} 76. Kb1 {[%clk 0:00:05]}  Bc3 {[%clk 0:00:11]} 77. Kc2 {[%clk 0:00:04]}  Be1 {[%clk 0:00:11]} 78. Nf6 {[%clk 0:00:03]}  Kc4 {[%clk 0:00:11]} 79. Ne4 {[%clk 0:00:03]}  Kd5 {[%clk 0:00:11]} 80. Ng5 {[%clk 0:00:03]}  Bb4 {[%clk 0:00:05]} 81. Nf3 {[%clk 0:00:03]}  Ke4 {[%clk 0:00:05]} 82. Nh4 {[%clk 0:00:02]}  Be7 {[%clk 0:00:05]} 83. Ng2 {[%clk 0:00:02]}  Bb4 {[%clk 0:00:05]} 84. Nh4 {[%clk 0:00:02]}  Kf4 {[%clk 0:00:04]} 85. Ng2+ {[%clk 0:00:02]}  Kf3 {[%clk 0:00:04]} 86. Nh4+ {[%clk 0:00:03]}  Kg4 {[%clk 0:00:03]} 87. Ng6 {[%clk 0:00:04]}  Bd6 {[%clk 0:00:04]} 88. Nh8 {[%clk 0:00:02]}  Kf5 {[%clk 0:00:04]} 89. Nf7 {[%clk 0:00:03]}  Be7 {[%clk 0:00:04]} 90. Kd3 {[%clk 0:00:02]}  Kf6 {[%clk 0:00:04]} 91. Nh6 {[%clk 0:00:02]}  Kg5 {[%clk 0:00:04]} 92. Nf7+ {[%clk 0:00:02]}  Kf6 {[%clk 0:00:04]} 93. Nh6 {[%clk 0:00:03]}  Ke6 {[%clk 0:00:03]} 94. Ng4 {[%clk 0:00:03]}  Bc5 {[%clk 0:00:03]} 95. Nh2 {[%clk 0:00:03]}  Kd5 {[%clk 0:00:03]} 96. Nf3 {[%clk 0:00:03]}  Bb6 {[%clk 0:00:03]} 97. Nd2 {[%clk 0:00:04]}  Kc5 {[%clk 0:00:04]} 98. Kc3 {[%clk 0:00:03]}  Bd8 {[%clk 0:00:04]} 99. Nb3+ {[%clk 0:00:03]}  Kd5 {[%clk 0:00:03]} 100. Kd3 {[%clk 0:00:04]}  a4 {[%clk 0:00:03]} 101. Nd4 {[%clk 0:00:04]}  b4 {[%clk 0:00:03]} 102. Nc2 {[%clk 0:00:04]}  Be7 {[%clk 0:00:03]} 103. Ne3+ {[%clk 0:00:04]}  Kc5 {[%clk 0:00:03]} 104. Nf5 {[%clk 0:00:04]}  Bf6 {[%clk 0:00:03]} 105. Ng3 {[%clk 0:00:05]}  Be5 {[%clk 0:00:04]} 106. Ne4+ {[%clk 0:00:05]}  Kd5 {[%clk 0:00:04]} 107. Nd2 {[%clk 0:00:06]}  Bf4 {[%clk 0:00:05]} 108. Nc4 {[%clk 0:00:06]}  Kc5 {[%clk 0:00:05]} 109. Nb2 {[%clk 0:00:06]}  Kb5 {[%clk 0:00:05]} 110. Nd1 {[%clk 0:00:05]}  Bg5 {[%clk 0:00:05]} 111. Nf2 {[%clk 0:00:05]}  Bf6 {[%clk 0:00:06]} 112. Ne4 {[%clk 0:00:06]}  b3 {[%clk 0:00:05]} 113. a3 {[%clk 0:00:02]}  Bb2 {[%clk 0:00:05]} 114. Nd6+ {[%clk 0:00:01]}  Kc5 {[%clk 0:00:03]} 115. Nc4 {[%clk 0:00:02]}  Bc1 {[%clk 0:00:03]} 116. Kc3 {[%clk 0:00:02]}  Bf4 {[%clk 0:00:02]} 117. Kd3 {[%clk 0:00:02]}  Bg5 {[%clk 0:00:02]} 118. Nb2 {[%clk 0:00:02]}  Kb5 {[%clk 0:00:02]} 119. Nc4 {[%clk 0:00:03]}  Bf4 {[%clk 0:00:02]} 120. Nb2 {[%clk 0:00:01]}  Bd6 {[%clk 0:00:02]} 121. Nc4 {[%clk 0:00:01]}  Be7 {[%clk 0:00:03]} 122. Kc3 {[%clk 0:00:01]}  Bf8 {[%clk 0:00:04]} 123. Kd3 {[%clk 0:00:01]}  Be7 {[%clk 0:00:04]} 124. Kc3 {[%clk 0:00:02]}  Kc5 {[%clk 0:00:05]} 125. Kd3 {[%clk 0:00:01]}  Bf6 {[%clk 0:00:04]} 126. Nd2 {[%clk 0:00:01]}  Bb2 {[%clk 0:00:03]} 127. Nc4 {[%clk 0:00:02]}  Ba1 {[%clk 0:00:03]} 128. Nd2 {[%clk 0:00:02]}  Kd5 {[%clk 0:00:02]} 129. Nc4 {[%clk 0:00:03]}  Bd4 {[%clk 0:00:03]} 130. Nd2 {[%clk 0:00:03]}  Bc5 {[%clk 0:00:03]} 131. Nc4 {[%clk 0:00:03]}  Kc6 {[%clk 0:00:03]} 132. Kc3 {[%clk 0:00:03]}  Kb5 {[%clk 0:00:04]} 133. Kd3 {[%clk 0:00:04]}  Be7 {[%clk 0:00:04]} 1/2-1/2


[Site "https://www.chess.com"]

[Event "Titled Tuesday Blitz April 11 Early 2023"]
[White "Borgaonkar Akshay"]
[Black "Salinas Herrera, Pablo"]
[WhiteFideId "25639110"]
[BlackFideId "3407128"]
[WhiteElo "2063"]
[BlackElo "2546"]
[Result "1-0"]
[Round "07"]
[TimeControl "180+2"]
[Date "2023.04.11"]
[WhiteClock "0:01:04"]
[BlackClock "0:00:29"]

1. e4 {[%clk 0:03:00]}  c5 {[%clk 0:02:59]} 2. Nf3 {[%clk 0:03:00]}  e6 {[%clk 0:02:58]} 3. d4 {[%clk 0:02:57]}  cxd4 {[%clk 0:02:59]} 4. Nxd4 {[%clk 0:02:56]}  a6 {[%clk 0:03:00]} 5. Nc3 {[%clk 0:02:55]}  Qc7 {[%clk 0:02:59]} 6. g3 {[%clk 0:02:55]}  d6 {[%clk 0:02:58]} 7. Bg2 {[%clk 0:02:55]}  Nf6 {[%clk 0:02:59]} 8. O-O {[%clk 0:02:56]}  Be7 {[%clk 0:02:59]} 9. Be3 {[%clk 0:02:55]}  O-O {[%clk 0:03:00]} 10. f4 {[%clk 0:02:54]}  Nc6 {[%clk 0:02:58]} 11. Nxc6 {[%clk 0:02:47]}  bxc6 {[%clk 0:02:58]} 12. g4 {[%clk 0:02:47]}  d5 {[%clk 0:02:58]} 13. e5 {[%clk 0:02:41]}  Nd7 {[%clk 0:02:58]} 14. g5 {[%clk 0:02:37]}  Rb8 {[%clk 0:02:54]} 15. Rb1 {[%clk 0:02:33]}  Rd8 {[%clk 0:02:42]} 16. Qh5 {[%clk 0:02:30]}  g6 {[%clk 0:02:42]} 17. Qh4 {[%clk 0:02:19]}  Bf8 {[%clk 0:02:39]} 18. Rf3 {[%clk 0:02:16]}  Bg7 {[%clk 0:02:39]} 19. Rh3 {[%clk 0:02:15]}  h5 {[%clk 0:01:27]} 20. gxh6 {[%clk 0:02:13]}  Bf8 {[%clk 0:01:27]} 21. Ne2 {[%clk 0:01:53]}  c5 {[%clk 0:01:26]} 22. Bf2 {[%clk 0:01:45]}  Re8 {[%clk 0:00:58]} 23. Kh1 {[%clk 0:01:37]}  Kh7 {[%clk 0:00:58]} 24. b3 {[%clk 0:01:34]}  a5 {[%clk 0:00:58]} 25. a4 {[%clk 0:01:34]}  Rxb3 {[%clk 0:00:53]} 26. Rhxb3 {[%clk 0:01:27]}  Qc6 {[%clk 0:00:40]} 27. c4 {[%clk 0:01:25]}  Qxa4 {[%clk 0:00:37]} 28. cxd5 {[%clk 0:01:25]}  c4 {[%clk 0:00:37]} 29. R3b2 {[%clk 0:01:16]}  Qa3 {[%clk 0:00:29]} 30. dxe6 {[%clk 0:01:13]}  Rxe6 {[%clk 0:00:29]} 31. Bd5 {[%clk 0:01:09]}  Re7 {[%clk 0:00:29]} 32. Qg3 {[%clk 0:01:04]} 1-0


[Site "https://www.chess.com"]

[Event "Titled Tuesday Blitz April 11 Early 2023"]
[White "Williams, Simon K"]
[Black "Ashraf, Artin"]
[WhiteFideId "404454"]
[BlackFideId "22514805"]
[WhiteElo "2468"]
[BlackElo "2188"]
[Result "0-1"]
[Round "07"]
[TimeControl "180+2"]
[Date "2023.04.11"]
[WhiteClock "0:00:06"]
[BlackClock "0:00:05"]

1. e4 {[%clk 0:02:58]}  c5 {[%clk 0:02:59]} 2. Be2 {[%clk 0:02:54]}  e6 {[%clk 0:02:57]} 3. d3 {[%clk 0:02:54]}  d5 {[%clk 0:02:56]} 4. f4 {[%clk 0:02:54]}  Nc6 {[%clk 0:02:53]} 5. Nf3 {[%clk 0:02:53]}  Nf6 {[%clk 0:02:53]} 6. e5 {[%clk 0:02:50]}  Ng8 {[%clk 0:02:51]} 7. c3 {[%clk 0:02:49]}  Nge7 {[%clk 0:02:47]} 8. d4 {[%clk 0:02:44]}  Nf5 {[%clk 0:02:45]} 9. Bd3 {[%clk 0:02:30]}  Nh4 {[%clk 0:02:30]} 10. Nxh4 {[%clk 0:02:16]}  Qxh4+ {[%clk 0:02:28]} 11. g3 {[%clk 0:02:17]}  Qd8 {[%clk 0:02:20]} 12. Be3 {[%clk 0:02:10]}  Qb6 {[%clk 0:02:17]} 13. Qb3 {[%clk 0:01:47]}  Qa5 {[%clk 0:02:12]} 14. Qb5 {[%clk 0:01:40]}  Qc7 {[%clk 0:01:46]} 15. Qa4 {[%clk 0:01:28]}  Bd7 {[%clk 0:01:36]} 16. Qc2 {[%clk 0:01:25]}  Qb6 {[%clk 0:01:14]} 17. Qb3 {[%clk 0:01:01]}  Qa5 {[%clk 0:01:08]} 18. Qa3 {[%clk 0:00:46]}  Qxa3 {[%clk 0:00:28]} 19. Nxa3 {[%clk 0:00:46]}  c4 {[%clk 0:00:21]} 20. Be2 {[%clk 0:00:45]}  b5 {[%clk 0:00:21]} 21. Nc2 {[%clk 0:00:36]}  b4 {[%clk 0:00:20]} 22. a3 {[%clk 0:00:25]}  bxc3 {[%clk 0:00:19]} 23. bxc3 {[%clk 0:00:25]}  Na5 {[%clk 0:00:18]} 24. Bd1 {[%clk 0:00:20]}  Nb3 {[%clk 0:00:18]} 25. Rb1 {[%clk 0:00:20]}  a5 {[%clk 0:00:13]} 26. Bc1 {[%clk 0:00:20]}  Ba4 {[%clk 0:00:10]} 27. Rf1 {[%clk 0:00:18]}  g6 {[%clk 0:00:09]} 28. Ne3 {[%clk 0:00:17]}  Be7 {[%clk 0:00:06]} 29. Bxb3 {[%clk 0:00:14]}  cxb3 {[%clk 0:00:05]} 30. g4 {[%clk 0:00:09]}  Bb5 {[%clk 0:00:05]} 31. Rf3 {[%clk 0:00:08]}  a4 {[%clk 0:00:04]} 32. Ng2 {[%clk 0:00:08]}  h5 {[%clk 0:00:04]} 33. g5 {[%clk 0:00:07]}  Kd7 {[%clk 0:00:04]} 34. Bb2 {[%clk 0:00:07]}  Rhc8 {[%clk 0:00:05]} 35. Rc1 {[%clk 0:00:07]}  Rab8 {[%clk 0:00:04]} 36. Ne3 {[%clk 0:00:08]}  Bd3 {[%clk 0:00:03]} 37. Kd2 {[%clk 0:00:08]}  Be4 {[%clk 0:00:03]} 38. Rf2 {[%clk 0:00:09]}  Bxa3 {[%clk 0:00:04]} 39. Bxa3 {[%clk 0:00:08]}  b2 {[%clk 0:00:05]} 40. Rff1 {[%clk 0:00:05]}  bxc1=Q+ {[%clk 0:00:04]} 41. Rxc1 {[%clk 0:00:06]}  Rb3 {[%clk 0:00:05]} 42. Bb4 {[%clk 0:00:06]}  a3 {[%clk 0:00:05]} 43. Ra1 {[%clk 0:00:06]}  Rb2+ {[%clk 0:00:04]} 44. Kc1 {[%clk 0:00:06]}  Rxb4 {[%clk 0:00:05]} 0-1


[Site "https://www.chess.com"]

[Event "Titled Tuesday Blitz April 11 Early 2023"]
[White "Ozates, Tuna"]
[Black "Harsh Suresh"]
[WhiteFideId "6354521"]
[BlackFideId "45018464"]
[WhiteElo "2151"]
[BlackElo "2227"]
[Result "0-1"]
[Round "07"]
[TimeControl "180+2"]
[Date "2023.04.11"]
[WhiteClock "0:00:27"]
[BlackClock "0:00:39"]

1. e4 {[%clk 0:03:00]}  g6 {[%clk 0:02:58]} 2. d4 {[%clk 0:03:00]}  Nf6 {[%clk 0:02:58]} 3. Nc3 {[%clk 0:03:01]}  d5 {[%clk 0:02:58]} 4. exd5 {[%clk 0:02:45]}  Nxd5 {[%clk 0:02:58]} 5. Nxd5 {[%clk 0:02:45]}  Qxd5 {[%clk 0:02:59]} 6. c4 {[%clk 0:02:46]}  Qd8 {[%clk 0:02:58]} 7. h3 {[%clk 0:02:46]}  Bg7 {[%clk 0:02:59]} 8. Nf3 {[%clk 0:02:46]}  O-O {[%clk 0:02:59]} 9. Be2 {[%clk 0:02:46]}  c5 {[%clk 0:02:58]} 10. d5 {[%clk 0:02:39]}  e6 {[%clk 0:02:51]} 11. O-O {[%clk 0:02:37]}  exd5 {[%clk 0:02:51]} 12. cxd5 {[%clk 0:02:38]}  b6 {[%clk 0:02:46]} 13. a4 {[%clk 0:02:37]}  Bb7 {[%clk 0:02:46]} 14. Bc4 {[%clk 0:02:36]}  Na6 {[%clk 0:02:42]} 15. Re1 {[%clk 0:02:27]}  Nb4 {[%clk 0:02:41]} 16. Bg5 {[%clk 0:02:24]}  Bf6 {[%clk 0:02:32]} 17. Bxf6 {[%clk 0:02:20]}  Qxf6 {[%clk 0:02:33]} 18. Ne5 {[%clk 0:02:20]}  Rad8 {[%clk 0:02:30]} 19. Ra3 {[%clk 0:02:14]}  Bxd5 {[%clk 0:02:26]} 20. Bxd5 {[%clk 0:01:54]}  Rxd5 {[%clk 0:02:27]} 21. Qe2 {[%clk 0:01:54]}  h5 {[%clk 0:02:16]} 22. Re3 {[%clk 0:01:43]}  Qf5 {[%clk 0:02:07]} 23. g4 {[%clk 0:01:40]}  hxg4 {[%clk 0:02:03]} 24. hxg4 {[%clk 0:01:40]}  Qc2 {[%clk 0:02:03]} 25. Qf3 {[%clk 0:01:39]}  Rxe5 {[%clk 0:01:56]} 26. Rxe5 {[%clk 0:01:33]}  Nd3 {[%clk 0:01:57]} 27. Qf6 {[%clk 0:01:09]}  Qxb2 {[%clk 0:01:33]} 28. R1e2 {[%clk 0:00:53]}  Qa1+ {[%clk 0:01:30]} 29. Kg2 {[%clk 0:00:49]}  Nxe5 {[%clk 0:01:30]} 30. Rxe5 {[%clk 0:00:50]}  Qxa4 {[%clk 0:01:28]} 31. Rg5 {[%clk 0:00:41]}  Qe4+ {[%clk 0:01:27]} 32. f3 {[%clk 0:00:41]}  Qc2+ {[%clk 0:01:21]} 33. Kg3 {[%clk 0:00:41]}  c4 {[%clk 0:01:09]} 34. Rd5 {[%clk 0:00:33]}  Qe2 {[%clk 0:00:58]} 35. Kf4 {[%clk 0:00:28]}  Qe6 {[%clk 0:00:53]} 36. Qd4 {[%clk 0:00:27]}  c3 {[%clk 0:00:44]} 37. Kg5 {[%clk 0:00:27]}  c2 {[%clk 0:00:39]} 0-1


[Site "https://www.chess.com"]

[Event "Titled Tuesday Blitz April 11 Early 2023"]
[White "Ibadov, Dashgyn"]
[Black "Mahdavi, Reza"]
[WhiteFideId "24107514"]
[BlackFideId "12595926"]
[WhiteElo "2208"]
[BlackElo "2357"]
[Result "0-1"]
[Round "07"]
[TimeControl "180+2"]
[Date "2023.04.11"]
[WhiteClock "0:00:02"]
[BlackClock "0:01:19"]

1. e4 {[%clk 0:03:00]}  c5 {[%clk 0:02:57]} 2. Nf3 {[%clk 0:03:00]}  e6 {[%clk 0:02:57]} 3. d4 {[%clk 0:02:59]}  cxd4 {[%clk 0:02:58]} 4. Nxd4 {[%clk 0:02:59]}  Nc6 {[%clk 0:02:58]} 5. Nc3 {[%clk 0:03:00]}  Qc7 {[%clk 0:02:59]} 6. Be3 {[%clk 0:03:00]}  a6 {[%clk 0:02:59]} 7. Qf3 {[%clk 0:03:00]}  Nf6 {[%clk 0:03:00]} 8. Nxc6 {[%clk 0:02:55]}  bxc6 {[%clk 0:02:54]} 9. Qg3 {[%clk 0:02:55]}  Qxg3 {[%clk 0:02:55]} 10. hxg3 {[%clk 0:02:56]}  d5 {[%clk 0:02:55]} 11. exd5 {[%clk 0:02:50]}  cxd5 {[%clk 0:02:55]} 12. O-O-O {[%clk 0:02:50]}  Bd7 {[%clk 0:02:45]} 13. f3 {[%clk 0:02:47]}  Bb4 {[%clk 0:02:45]} 14. Bd4 {[%clk 0:02:47]}  Ke7 {[%clk 0:02:37]} 15. g4 {[%clk 0:02:46]}  h6 {[%clk 0:02:36]} 16. Bd3 {[%clk 0:02:42]}  Rhc8 {[%clk 0:02:35]} 17. Ne2 {[%clk 0:02:28]}  Bd6 {[%clk 0:02:32]} 18. Nc3 {[%clk 0:02:14]}  a5 {[%clk 0:02:29]} 19. Rde1 {[%clk 0:02:05]}  Rab8 {[%clk 0:02:27]} 20. a3 {[%clk 0:01:45]}  Bf4+ {[%clk 0:02:14]} 21. Kb1 {[%clk 0:01:41]}  Bd2 {[%clk 0:02:08]} 22. Ka2 {[%clk 0:01:10]}  Bxe1 {[%clk 0:02:07]} 23. Rxe1 {[%clk 0:01:11]}  Bc6 {[%clk 0:02:00]} 24. f4 {[%clk 0:00:55]}  Nxg4 {[%clk 0:01:58]} 25. Bxg7 {[%clk 0:00:54]}  Rg8 {[%clk 0:01:55]} 26. Bd4 {[%clk 0:00:54]}  Nf6 {[%clk 0:01:52]} 27. Re2 {[%clk 0:00:31]}  Rg4 {[%clk 0:01:52]} 28. Bc5+ {[%clk 0:00:25]}  Kd7 {[%clk 0:01:52]} 29. f5 {[%clk 0:00:25]}  Ne4 {[%clk 0:01:42]} 30. fxe6+ {[%clk 0:00:21]}  Kxe6 {[%clk 0:01:38]} 31. b3 {[%clk 0:00:12]}  Rbg8 {[%clk 0:01:36]} 32. Nxe4 {[%clk 0:00:06]}  dxe4 {[%clk 0:01:37]} 33. g3 {[%clk 0:00:01]}  f5 {[%clk 0:01:24]} 34. Bf2 {[%clk 0:00:02]}  Bd5 {[%clk 0:01:22]} 35. Bb5 {[%clk 0:00:02]}  Rxg3 {[%clk 0:01:20]} 36. Bxg3 {[%clk 0:00:02]}  Rxg3 {[%clk 0:01:21]} 37. Rh2 {[%clk 0:00:02]}  Ke5 {[%clk 0:01:20]} 38. c4 {[%clk 0:00:03]}  Be6 {[%clk 0:01:19]} 39. c5 {[%clk 0:00:03]}  Rxb3 {[%clk 0:01:19]} 40. Bd7 {[%clk 0:00:02]}  Rh3+ {[%clk 0:01:19]} 0-1


[Site "https://www.chess.com"]

[Event "Titled Tuesday Blitz April 11 Early 2023"]
[White "Mikhailovsky, Vladimir"]
[Black "Jain Kashish Manoj"]
[WhiteFideId "34105414"]
[BlackFideId "35081098"]
[WhiteElo "2275"]
[BlackElo "2191"]
[Result "0-1"]
[Round "07"]
[TimeControl "180+2"]
[Date "2023.04.11"]
[WhiteClock "0:00:01"]
[BlackClock "0:00:02"]

1. e4 {[%clk 0:03:00]}  c5 {[%clk 0:02:59]} 2. Nf3 {[%clk 0:02:59]}  d6 {[%clk 0:02:59]} 3. d4 {[%clk 0:02:59]}  cxd4 {[%clk 0:03:00]} 4. Nxd4 {[%clk 0:03:00]}  Nf6 {[%clk 0:03:01]} 5. Nc3 {[%clk 0:03:00]}  Nc6 {[%clk 0:03:02]} 6. f3 {[%clk 0:02:57]}  e5 {[%clk 0:03:00]} 7. Nb3 {[%clk 0:02:57]}  Be6 {[%clk 0:02:58]} 8. g4 {[%clk 0:02:56]}  h6 {[%clk 0:02:53]} 9. g5 {[%clk 0:02:50]}  hxg5 {[%clk 0:02:50]} 10. Bxg5 {[%clk 0:02:51]}  Be7 {[%clk 0:02:50]} 11. Qd2 {[%clk 0:02:48]}  Nh5 {[%clk 0:02:05]} 12. Bxe7 {[%clk 0:02:46]}  Qxe7 {[%clk 0:02:06]} 13. O-O-O {[%clk 0:02:46]}  Rd8 {[%clk 0:01:28]} 14. Rg1 {[%clk 0:02:39]}  Kf8 {[%clk 0:01:15]} 15. Kb1 {[%clk 0:02:37]}  a6 {[%clk 0:01:13]} 16. Nd5 {[%clk 0:02:07]}  Bxd5 {[%clk 0:01:07]} 17. Qxd5 {[%clk 0:02:08]}  Nf4 {[%clk 0:01:04]} 18. Qd2 {[%clk 0:02:08]}  d5 {[%clk 0:01:04]} 19. Bd3 {[%clk 0:01:57]}  dxe4 {[%clk 0:00:45]} 20. fxe4 {[%clk 0:01:58]}  Nb4 {[%clk 0:00:46]} 21. Qe3 {[%clk 0:01:28]}  Nbxd3 {[%clk 0:00:21]} 22. cxd3 {[%clk 0:01:28]}  Rxh2 {[%clk 0:00:21]} 23. Rxg7 {[%clk 0:01:28]}  Rxb2+ {[%clk 0:00:20]} 24. Kxb2 {[%clk 0:01:29]}  Kxg7 {[%clk 0:00:21]} 25. d4 {[%clk 0:01:12]}  Rh8 {[%clk 0:00:17]} 26. Qg3+ {[%clk 0:01:07]}  Ng6 {[%clk 0:00:16]} 27. d5 {[%clk 0:01:06]}  b6 {[%clk 0:00:11]} 28. Rg1 {[%clk 0:00:56]}  a5 {[%clk 0:00:09]} 29. Ka1 {[%clk 0:00:55]}  a4 {[%clk 0:00:09]} 30. Nd2 {[%clk 0:00:42]}  Rc8 {[%clk 0:00:09]} 31. Nf3 {[%clk 0:00:23]}  Kf8 {[%clk 0:00:03]} 32. Qh3 {[%clk 0:00:07]}  Qc5 {[%clk 0:00:03]} 33. Ng5 {[%clk 0:00:02]}  a3 {[%clk 0:00:02]} 34. Rb1 {[%clk 0:00:01]}  Qd4+ {[%clk 0:00:02]} 0-1


[Site "https://www.chess.com"]